fUSD/lending_fUSD_20260322
["ID","MTS","AMOUNT","RATE_DAILY","PERIOD"]
[408704311,1774155530733,156.0,6.693e-05,2]
[408704312,1774155531266,156.0,6.693e-05,2]
[408704313,1774155531489,29.21757694,6.693e-05,2]
[408704314,1774155531510,126.78242306,6.693e-05,2]
[408704315,1774155531710,156.0,6.693e-05,2]
[408704316,1774155531967,156.0,6.693e-05,2]
[408704317,1774155532205,156.0,6.693e-05,2]
[408704318,1774155532436,22.82136541,6.693e-05,2]
[408704319,1774155532460,133.17863459,6.693e-05,2]
[408704320,1774155532659,156.0,6.693e-05,2]
[408704321,1774155532912,156.0,6.693e-05,2]
[408704322,1774155533142,156.0,6.693e-05,2]
[408704323,1774155533363,16.42515388,6.693e-05,2]
[408704324,1774155533390,139.57484612,6.693e-05,2]
[408704325,1774155533576,156.0,6.693e-05,2]
[408704326,1774155533788,156.0,6.693e-05,2]
[408704327,1774155534028,156.0,6.693e-05,2]
[408704328,1774155534368,10.02894235,6.693e-05,2]
[408704329,1774155534400,145.97105765,6.693e-05,2]
[408704330,1774155534579,156.0,6.693e-05,2]
[408704331,1774155534800,156.0,6.693e-05,2]
[408704332,1774155535014,156.0,6.693e-05,2]
[408704333,1774155535238,3.63273082,6.693e-05,2]
[408704334,1774155535261,152.36726918,6.693e-05,2]
[408704335,1774155535469,156.0,6.693e-05,2]
[408704336,1774155535688,156.0,6.693e-05,2]
[408704337,1774155536213,156.0,6.693e-05,2]
[408704340,1774155664424,205.65993177,0.0001,2]
[408704350,1774155966036,151.0,0.0001,2]
[408704351,1774155966069,151.0,0.0001,2]
[408704353,1774156027108,-1600.0,0.00013121,2]
[408704354,1774156027133,-2000.0,0.00013191,2]
[408704355,1774156027154,-166.5946015,0.000134,2]
[408704356,1774156027175,-166.66,0.00013429,2]
[408704357,1774156027194,-237.6846,0.000135,2]
[408704358,1774156027214,-166.66,0.00013571,2]
[408704359,1774156027235,-232.68883078,0.00013675,2]
[408704360,1774156152613,2000.0,0.00012671,2]
[408704361,1774156205237,177.0,0.00012671,2]
[408704362,1774156205710,163.0,0.00012671,2]
[408704363,1774156206571,171.0,0.00012671,2]
[408704365,1774156231716,-150.0,0.00013675,2]
[408704366,1774156231726,-1200.0,0.00013675,2]
[408704367,1774156231740,-1542.5689,0.00013676,2]
[408704368,1774156231752,-1261.1111,0.00013676,2]
[408704369,1774156231765,-96807.7142414,0.00013676,2]
[408704370,1774156231814,-255.83894739,0.00013676,2]
[408704371,1774156231825,-654.03111997,0.00013676,2]
[408704372,1774156231871,-391.88,0.00013676,2]
[408704373,1774156232247,-0.15521665,0.00013676,2]
[408704375,1774156237780,-9413.05917459,0.00013676,2]
[408704376,1774156237790,-5000.0068,0.00013676,2]
[408704377,1774156237799,-2017.91729912,0.00013676,2]
[408704378,1774156237808,-354.71,0.00013699,2]
[408704379,1774156237817,-500.0,0.00013775,2]
[408704380,1774156237827,-520.47070703,0.00013775,2]
[408704381,1774156237835,-200.0,0.00013776,2]
[408704382,1774156237844,-200.0,0.00013776,2]
[408704383,1774156237854,-200.0,0.00013776,2]
[408704384,1774156237863,-200.0,0.00013776,2]
[408704385,1774156237872,-200.0,0.00013776,2]
[408704386,1774156237881,-200.0,0.00013776,2]
[408704387,1774156237890,-200.0,0.00013776,2]
[408704388,1774156237899,-200.0,0.00013776,2]
[408704389,1774156237908,-200.0,0.00013776,2]
[408704390,1774156237920,-200.0,0.00013776,2]
[408704391,1774156237929,-200.0,0.00013776,2]
[408704392,1774156237938,-200.0,0.00013776,2]
[408704393,1774156237947,-200.0,0.00013776,2]
[408704394,1774156237956,-200.0,0.00013776,2]
[408704395,1774156237968,-200.0,0.00013776,2]
[408704396,1774156237977,-200.0,0.00013776,2]
[408704397,1774156237987,-200.0,0.00013776,2]
[408704398,1774156237996,-200.0,0.00013776,2]
[408704399,1774156238007,-200.0,0.00013776,2]
[408704400,1774156238016,-209.863504,0.00013776,2]
[408704401,1774156238026,-500.0,0.00013776,2]
[408704402,1774156238035,-800.0,0.000138,5]
[408704403,1774156238046,-166.66,0.00013857,2]
[408704404,1774156238056,-166.66,0.00013873,2]
[408704405,1774156238065,-150.94424296,0.00013873,2]
[408704406,1774156238078,-351.70069854,0.00013873,2]
[408704407,1774156238086,-7.11725247,0.00013873,2]
[408704408,1774156238106,-264.48449264,0.00013873,2]
[408704410,1774156238117,-228.39825489,0.00013873,2]
[408704411,1774156238127,-1121.0,0.00013875,5]
[408704412,1774156238136,-1600.0,0.000139,5]
[408704413,1774156238145,-37.76279879,0.00013923,2]
[408704414,1774156238157,-1086.71067499,0.00013923,2]
[408704415,1774156238168,-893.44382525,0.00013923,2]
[408704417,1774156238178,-500.0,0.00013975,2]
[408704419,1774156238188,-514.04586385,0.00013975,2]
[408704421,1774156238197,-100.7953128,0.00013975,2]
[408704424,1774156238208,-399.2046872,0.00013975,2]
[408704425,1774156238218,-524.0,0.00014,2]
[408704426,1774156238227,-800.0,0.00014082,2]
[408704427,1774156238237,-233.4953028,0.00014128,2]
[408704428,1774156238248,-550.9837189,0.00014128,2]
[408704429,1774156238259,-2426.4876483,0.00014128,2]
[408704431,1774156240040,-1965.08333,0.00014128,2]
[408704432,1774156240050,-166.66,0.00014143,2]
[408704433,1774156240059,-896.0,0.00014153,2]
[408704434,1774156240069,-202.99783892,0.0001417,2]
[408704435,1774156240096,-1639.81824446,0.0001417,2]
[408704436,1774156240314,-175.10121565,0.0001417,2]
[408704437,1774156240324,-1482.36,0.00014254,2]
[408704438,1774156240335,-200.0,0.000143,2]
[408704439,1774156240345,-166.66,0.00014316,2]
[408704440,1774156240355,-500.0,0.00014331,3]
[408704441,1774156240364,-700.0,0.00014356,2]
[408704442,1774156240373,-700.0,0.00014356,2]
[408704443,1774156240383,-2017.91729903,0.00014417,2]
[408704444,1774156240393,-1000.0,0.00014421,2]
[408704445,1774156240403,-153.83,0.00014428,2]
[408704446,1774156240413,-166.66,0.00014429,2]
[408704447,1774156240422,-200.0,0.00014433,2]
[408704448,1774156240432,-5000.0,0.00014433,2]
[408704449,1774156240442,-200.0,0.00014433,2]
[408704450,1774156240452,-200.0,0.00014433,2]
[408704451,1774156240461,-200.0,0.00014433,2]
[408704452,1774156240471,-236.67899499,0.00014433,2]
[408704453,1774156240481,-500.0,0.00014623,2]
[408704454,1774156240491,-2017.91729903,0.00014664,2]
[408704455,1774156240500,-171.82,0.00014677,2]
[408704456,1774156240509,-369.87,0.00014714,2]
[408704457,1774156240519,-166.66,0.00014714,2]
[408704458,1774156240530,-166.66,0.00014759,2]
[408704459,1774156240541,-1600.0,0.00014761,2]
[408704460,1774156240551,-255.0,0.00014796,2]
[408704461,1774156240561,-2000.0,0.0001484,2]
[408704462,1774156240571,-2017.91729903,0.00014912,2]
[408704463,1774156240582,-500.0,0.00014959,2]
[408704464,1774156240592,-1500.0,0.00014968,2]
[408704465,1774156240602,-166.66,0.00015,2]
[408704466,1774156240613,-250.0,0.00015,2]
[408704467,1774156240622,-1680.0,0.00015042,2]
[408704468,1774156240632,-252.31247552,0.00015043,2]
[408704469,1774156240642,-300.0,0.00015043,2]
[408704470,1774156240651,-302.87275784,0.00015043,2]
[408704471,1774156240661,-215.0,0.00015044,2]
[408704472,1774156240671,-215.0,0.00015056,2]
[408704473,1774156240680,-215.0,0.00015084,2]
[408704474,1774156240690,-2017.91729903,0.00015159,2]
[408704475,1774156240699,-500.0,0.000152,2]
[408704476,1774156240709,-500.0,0.000152,2]
[408704477,1774156240719,-200.0,0.000152,5]
[408704478,1774156240732,-166.66,0.00015202,2]
[408704479,1774156240744,-215.0,0.00015232,2]
[408704480,1774156240760,-699.92305398,0.00015265,2]
[408704481,1774156240772,-500.0,0.000153,5]
[408704482,1774156240783,-979.16666667,0.00015302,2]
[408704483,1774156240794,-9999.99,0.0001531,2]
[408704484,1774156240805,-150.99,0.0001531,2]
[408704485,1774156240818,-215.0,0.00015315,2]
[408704486,1774156240830,-1261.0,0.00015321,2]
[408704487,1774156240841,-924.0,0.00015321,2]
[408704488,1774156240853,-1215.0,0.00015321,2]
[408704489,1774156240865,-161.0,0.0001536,2]
[408704490,1774156240878,-476.23065352,0.00015384,2]
[408704491,1774156240892,-2400.0,0.000154,5]
[408704492,1774156240903,-800.0,0.000154,5]
[408704493,1774156240915,-2017.91729903,0.00015406,2]
[408704494,1774156240928,-800.0,0.00015452,2]
[408704495,1774156240938,-153.83,0.00015459,2]
[408704496,1774156240950,-3200.0,0.000155,5]
[408704497,1774156240963,-1100.0,0.000155,5]
[408704498,1774156240976,-823.0,0.00015505,2]
[408704499,1774156240988,-4000.0,0.00015507,2]
[408704500,1774156241002,-2000.0,0.00015516,2]
[408704501,1774156241014,-182.650276,0.00015577,7]
[408704502,1774156241026,-699.92305398,0.00015582,2]
[408704503,1774156241039,-644.98,0.00015595,2]
[408704504,1774156241051,-4000.0,0.000156,5]
[408704505,1774156241064,-1400.0,0.000156,5]
[408704506,1774156241076,-252.249275,0.00015603,7]
[408704507,1774156241088,-234.281665,0.00015626,7]
[408704508,1774156241101,-384.206053,0.00015626,7]
[408704509,1774156241113,-160.0,0.00015626,7]
[408704510,1774156241126,-238.395054,0.00015626,7]
[408704511,1774156241137,-1009.0,0.00015638,5]
[408704512,1774156241150,-166.66,0.00015646,2]
[408704513,1774156241162,-2017.91729903,0.00015653,2]
[408704514,1774156241175,-215.0,0.00015654,2]
[408704515,1774156241189,-1401.05547923,0.0001568,2]
[408704516,1774156241202,-306.0,0.0001568,2]
[408704517,1774156241216,-3760.0,0.00015689,2]
[408704518,1774156241227,-2466.0,0.00015689,2]
[408704519,1774156241239,-6008.0,0.00015689,2]
[408704520,1774156241252,-800.0,0.000157,5]
[408704521,1774156241264,-200.0,0.000157,5]
[408704522,1774156241275,-215.0,0.00015722,2]
[408704523,1774156241286,-700.0,0.00015726,2]
[408704524,1774156241296,-700.0,0.00015726,2]
[408704525,1774156241308,-177.202,0.00015778,2]
[408704526,1774156241320,-2425.274,0.00015778,2]
[408704527,1774156241333,-215.0,0.00015797,2]
[408704528,1774156241345,-800.0,0.000158,5]
[408704529,1774156241355,-200.0,0.000158,5]
[408704530,1774156241366,-215.0,0.00015829,2]
[408704531,1774156241377,-782.4931597,0.00015838,2]
[408704532,1774156241388,-2374.002028,0.00015841,2]
[408704533,1774156241400,-215.0,0.00015862,2]
[408704534,1774156241412,-500.0,0.00015872,2]
[408704535,1774156241425,-151.0,0.0001589,2]
[408704536,1774156241437,-151.0,0.0001589,2]
[408704537,1774156241447,-2000.0,0.0001589,2]
[408704538,1774156241458,-4000.0,0.00015895,2]
[408704539,1774156241468,-153.73598,0.000159,2]
[408704540,1774156241479,-800.0,0.000159,5]
[408704541,1774156241490,-699.92305398,0.000159,2]
[408704542,1774156241501,-439.94635896,0.000159,2]
[408704543,1774156241512,-2017.91729903,0.000159,2]
[408704544,1774156241523,-200.0,0.000159,5]
[408704545,1774156241536,-332.006485,0.00015921,2]
[408704546,1774156241546,-332.006485,0.00015921,2]
[408704547,1774156241558,-332.006485,0.00015921,2]
[408704548,1774156241569,-332.006485,0.00015921,2]
[408704549,1774156241581,-151.0,0.00015921,2]
[408704550,1774156241592,-151.0,0.00015921,2]
[408704551,1774156241603,-151.0,0.00015921,2]
[408704552,1774156241615,-151.0,0.00015921,2]
[408704553,1774156241626,-275.451178,0.00015921,2]
[408704554,1774156241638,-150.0,0.00015921,2]
[408704555,1774156241649,-150.0,0.00015921,2]
[408704556,1774156241660,-1345.0,0.00015921,2]
[408704557,1774156241671,-621.0,0.00015921,2]
[408704558,1774156241682,-1044.0,0.00015921,2]
[408704559,1774156241693,-3514.0,0.00015921,2]
[408704560,1774156241704,-155.0,0.00015944,2]
[408704561,1774156241715,-4703.048927,0.00015945,2]
[408704562,1774156241726,-82263.00317287,0.00015945,2]
[408704563,1774156241943,-6061.57519651,0.00015945,2]
[408704564,1774156241956,-6345.22456133,0.00015945,2]
[408704565,1774156241969,-500.0,0.00015945,2]
[408704566,1774156241982,-306.10710901,0.00015945,2]
[408704567,1774156241996,-420.86114321,0.00015945,2]
[408704568,1774156242009,-922.18333418,0.00015945,2]
[408704569,1774156242022,-425.63,0.00015945,2]
[408704573,1774156245317,-463.19799855,0.000159,2]
[408704574,1774156245553,-453.37174808,0.000159,2]
[408704575,1774156245573,-1329.59856054,0.000158,2]
[408704576,1774156245584,-670.40143946,0.000158,2]
[408704577,1774156245594,-1083.43025337,0.000159,2]
[408704578,1774156245603,-5818.30777488,0.00015945,2]
[408704579,1774156245615,-1064.41897122,0.00015945,2]
[408704580,1774156245626,-3047.58091749,0.00015945,2]
[408704596,1774156245937,-11908.6039419,0.00015945,2]
[408704597,1774156245948,-3857.7123853,0.00015945,2]
[408704598,1774156245960,-45448.89818731,0.00015945,2]
[408704599,1774156246017,-683.74247217,0.00015945,2]
[408704604,1774157021766,167.4,6.67e-05,2]
[408704605,1774157022153,167.4,7.021e-05,2]
[408704606,1774157022351,167.4,7.372e-05,2]
[408704607,1774157022539,167.4,7.723e-05,2]
[408704608,1774157022736,167.4,8.074e-05,2]
[408704609,1774157022919,167.4,8.425e-05,2]
[408704610,1774157023113,167.4,8.776e-05,2]
[408704611,1774157023305,167.4,9.127e-05,2]
[408704612,1774157023492,167.4,9.478e-05,2]
[408704613,1774157023691,167.4,9.829e-05,2]
[408704614,1774157023884,167.4,0.0001018,2]
[408704615,1774157024072,167.4,0.00010531,2]
[408704616,1774157024270,167.4,0.00010882,2]
[408704617,1774157024624,167.4,0.00011233,2]
[408704618,1774157024658,167.4,0.00011584,2]
[408704619,1774157024847,167.4,0.00011935,2]
[408704620,1774157025043,167.4,0.00012286,2]
[408704621,1774157025231,167.4,0.00012637,2]
[408704623,1774157183389,3275.87797803,8e-05,2]
[408704626,1774157230129,-925.41,0.00012924,2]
[408704627,1774157230150,-167.4,0.00012989,2]
[408704628,1774157230171,-250.0,0.00013019,2]
[408704629,1774157230191,-500.0,0.0001305,2]
[408704630,1774157230211,-167.4,0.0001334,2]
[408704631,1774157230236,-3658.36,0.0001334,2]
[408704632,1774157230259,-3240.0,0.00013425,2]
[408704633,1774157230282,-1200.0,0.00013573,2]
[408704634,1774157230304,-300.0,0.00013574,2]
[408704635,1774157230325,-300.0,0.00013574,2]
[408704636,1774157230345,-1012.77724963,0.00013575,2]
[408704637,1774157230366,-150.0,0.00013575,2]
[408704638,1774157230387,-6013.35301814,0.00013576,2]
[408704639,1774157334731,5000.01,9.5e-05,3]
[408704640,1774157334754,5000.01,9.5e-05,3]
[408704641,1774157334776,5000.01,9.5e-05,3]
[408704642,1774157334797,5000.01,9.5e-05,3]
[408704643,1774157334818,5000.01,9.5e-05,3]
[408704644,1774157334839,5000.01,9.5e-05,3]
[408704645,1774157334860,5000.01,9.5e-05,3]
[408704646,1774157334884,5000.01,9.5e-05,3]
[408704647,1774157334909,5000.01,9.5e-05,3]
[408704648,1774157334930,5000.01,9.5e-05,3]
[408704649,1774157334952,6724.13202197,9.5e-05,3]
[408704650,1774157334971,10000.01,9.5e-05,3]
[408704651,1774157334991,10000.01,9.5e-05,3]
[408704652,1774157335012,10000.01,9.5e-05,3]
[408704653,1774157335032,10000.01,9.5e-05,3]
[408704654,1774157335054,10000.01,9.5e-05,3]
[408704655,1774157335075,10000.01,9.5e-05,3]
[408704656,1774157335098,10000.01,9.5e-05,3]
[408704657,1774157335120,10000.01,9.5e-05,3]
[408704658,1774157335143,10000.01,9.5e-05,3]
[408704659,1774157335168,309.23651929,9.5e-05,3]
[408704660,1774157335190,617.60378847,9.5e-05,3]
[408704661,1774157335213,617.60378847,9.5e-05,3]
[408704662,1774157335235,617.60378847,9.5e-05,3]
[408704663,1774157335266,35521.23805416,9.5e-05,3]
[408704664,1774157337331,-9051.80242304,9.5e-05,3]
[408704665,1774157337421,-10000.01,9.5e-05,3]
[408704666,1774157337537,-10000.01,9.5e-05,3]
[408704667,1774157337642,-10000.01,9.5e-05,3]
[408704668,1774157337767,-10000.01,9.5e-05,3]
[408704669,1774157341188,-300.0,9.499e-05,2]
[408704670,1774157341274,-554.90035396,9.5e-05,3]
[408704671,1774157341304,-5000.01,9.5e-05,3]
[408704672,1774157341382,-5000.01,9.5e-05,3]
[408704673,1774157341467,-5000.01,9.5e-05,3]
[408704674,1774157341571,-5000.01,9.5e-05,3]
[408704675,1774157341674,-5000.01,9.5e-05,3]
[408704676,1774157341783,-5000.01,9.5e-05,3]
[408704677,1774157341866,-5000.01,9.5e-05,3]
[408704678,1774157342015,-5000.01,9.5e-05,3]
[408704679,1774157342799,-5000.01,9.5e-05,3]
[408704680,1774157342914,-5000.01,9.5e-05,3]
[408704681,1774157343036,-5000.01,9.5e-05,3]
[408704682,1774157343127,-5000.01,9.5e-05,3]
[408704683,1774157345115,-10000.01,9.5e-05,3]
[408704684,1774157345205,-10000.01,9.5e-05,3]
[408704685,1774157345301,-10000.01,9.5e-05,3]
[408704686,1774157345441,-10000.01,9.5e-05,3]
[408704687,1774157345553,-10000.01,9.5e-05,3]
[408704688,1774157345829,-10000.01,9.5e-05,3]
[408704689,1774157345938,-10000.01,9.5e-05,3]
[408704690,1774157346049,-4858.44547267,9.5e-05,3]
[408704691,1774157346076,-283.11905466,9.5e-05,3]
[408704692,1774157346152,-169.0,9.5e-05,3]
[408704693,1774157346181,-420.0,0.00010449,2]
[408704694,1774157346210,-3289.01,0.00011,5]
[408704695,1774157346274,-2243.99,0.00011,5]
[408704696,1774157346306,-587.0,0.00011494,2]
[408704697,1774157346335,-823.0,0.00012643,2]
[408704698,1774157352085,-3096.02142003,0.00013408,2]
[408704704,1774157431974,-168.0,0.00013408,3]
[408704705,1774157431986,-163.0,0.00013408,3]
[408704706,1774157431997,-7435.338186,0.00013408,2]
[408704707,1774157432008,-193.73019871,0.00013476,2]
[408704708,1774157432018,-1200.0,0.00013499,2]
[408704709,1774157432030,-749.81151348,0.000135,2]
[408704710,1774157432041,-193.7301987,0.00013526,2]
[408704711,1774157432054,-300.0,0.00013575,2]
[408704712,1774157432064,-150.0,0.00013575,2]
[408704713,1774157432073,-2337.2665,0.00013576,2]
[408704714,1774157432083,-2500.0,0.00013576,2]
[408704715,1774157432092,-23781.2139,0.00013576,2]
[408704716,1774157432102,-71174.2402,0.00013576,2]
[408704717,1774157432112,-2121.21040499,0.00013576,2]
[408704718,1774157432122,-1515.99482124,0.00013576,2]
[408704719,1774157432132,-193.7301987,0.00013576,2]
[408704720,1774157432142,-500.0,0.00013667,2]
[408704721,1774157432152,-529.91766808,0.00013667,2]
[408704722,1774157432162,-151.0,0.00013667,2]
[408704723,1774157432173,-164.49481568,0.00013667,2]
[408704724,1774157432182,-500.0,0.00013667,2]
[408704725,1774157432192,-555.45475179,0.00013667,2]
[408704726,1774157432202,-500.0,0.00013673,2]
[408704727,1774157432212,-500.0,0.00013675,2]
[408704728,1774157432222,-500.0,0.00013675,2]
[408704729,1774157432232,-500.0,0.00013675,2]
[408704730,1774157432241,-500.0,0.00013675,2]
[408704731,1774157432250,-500.0,0.00013675,2]
[408704732,1774157432259,-500.0,0.00013675,2]
[408704733,1774157432269,-500.0,0.00013675,2]
[408704734,1774157432282,-500.0,0.00013675,2]
[408704735,1774157432291,-500.0,0.00013675,2]
[408704736,1774157432300,-500.0,0.00013675,2]
[408704737,1774157432310,-500.0,0.00013675,2]
[408704738,1774157432319,-500.0,0.00013675,2]
[408704739,1774157432328,-500.0,0.00013675,2]
[408704740,1774157432337,-500.0,0.00013675,2]
[408704741,1774157432347,-500.0,0.00013675,2]
[408704742,1774157432357,-500.0,0.00013675,2]
[408704743,1774157432368,-500.0,0.00013675,2]
[408704744,1774157432379,-500.0,0.00013675,2]
[408704745,1774157432388,-500.0,0.00013675,2]
[408704746,1774157432399,-500.0,0.00013675,2]
[408704747,1774157432410,-500.0,0.00013675,2]
[408704748,1774157432421,-500.0,0.00013675,2]
[408704749,1774157432431,-500.0,0.00013675,2]
[408704750,1774157432441,-500.0,0.00013675,2]
[408704751,1774157432450,-500.0,0.00013675,2]
[408704752,1774157432459,-500.0,0.00013675,2]
[408704753,1774157432468,-500.0,0.00013675,2]
[408704754,1774157432477,-500.0,0.00013675,2]
[408704755,1774157432487,-500.0,0.00013675,2]
[408704756,1774157432496,-500.0,0.00013675,2]
[408704757,1774157432505,-500.0,0.00013675,2]
[408704758,1774157432514,-500.0,0.00013675,2]
[408704759,1774157432524,-500.0,0.00013675,2]
[408704760,1774157432533,-500.0,0.00013675,2]
[408704761,1774157432543,-500.0,0.00013675,2]
[408704762,1774157432552,-474.9840487,0.00013675,2]
[408704763,1774157432561,-500.0,0.00013675,2]
[408704764,1774157432570,-500.0,0.00013675,2]
[408704765,1774157432580,-500.0,0.00013675,2]
[408704766,1774157432589,-500.0,0.00013675,2]
[408704767,1774157432598,-500.0,0.00013675,2]
[408704768,1774157432608,-305.58720289,0.00013675,2]
[408704769,1774157432617,-500.0,0.00013675,2]
[408704770,1774157432626,-500.0,0.00013675,2]
[408704771,1774157432636,-500.0,0.00013675,2]
[408704772,1774157432645,-500.0,0.00013675,2]
[408704773,1774157432655,-500.0,0.00013675,2]
[408704774,1774157432664,-500.0,0.00013675,2]
[408704775,1774157432674,-500.0,0.00013675,2]
[408704776,1774157432683,-500.0,0.00013675,2]
[408704777,1774157432693,-247.49840487,0.00013675,2]
[408704778,1774157432702,-500.0,0.00013675,2]
[408704779,1774157432712,-500.0,0.00013675,2]
[408704780,1774157432721,-500.0,0.00013675,2]
[408704781,1774157432730,-500.0,0.00013675,2]
[408704782,1774157432738,-159.44912338,0.00013675,2]
[408704783,1774157432747,-646.53086032,0.00013675,2]
[408704784,1774157432756,-500.0,0.00013675,2]
[408704785,1774157432766,-500.0,0.00013675,2]
[408704786,1774157432775,-500.0,0.00013675,2]
[408704787,1774157432784,-500.0,0.00013675,2]
[408704788,1774157432794,-500.0,0.00013675,2]
[408704789,1774157432804,-203.06125565,0.00013675,2]
[408704790,1774157432817,-180.67,0.00013675,2]
[408704791,1774157432826,-2493.426,0.00013675,2]
[408704792,1774157432835,-174.86,0.00013675,2]
[408704793,1774157432844,-9300.6165,0.00013676,2]
[408704794,1774157432853,-339013.64936648,0.00013676,2]
[408704799,1774157437908,-1685.66192628,0.00013676,2]
[408704800,1774157437923,-6289.73662505,0.00013676,2]
[408704801,1774157437969,-580.23789574,0.00013676,2]
[408704802,1774157438082,-803.89889072,0.00013676,2]
[408704803,1774157438093,-581.50174013,0.00013676,2]
[408704806,1774157440205,-385.4641231,0.00013676,2]
[408704807,1774157440374,-300146.745044,0.00013676,2]
[408704808,1774157440649,-12614.49859916,0.00013676,2]
[408705040,1774157443152,-7780.95977246,0.00013676,2]
[408705058,1774157443315,-6150.40569559,0.00013676,2]
[408705103,1774157445871,-7388.10291589,0.00013676,2]
[408705104,1774157445883,-37336.1643656,0.00013676,2]
[408705107,1774157467760,494.0,0.000108,5]
[408705108,1774157467787,6200.384393,7.945e-05,2]
[408705109,1774157526606,169.0,0.00012671,2]
[408705110,1774157526847,169.0,0.00012671,2]
[408705111,1774157528711,171.0,0.00012671,2]
[408705112,1774157586796,170.0,0.00012671,2]
[408705116,1774157646498,170.0,0.00012671,2]
[408705117,1774157707069,193.0,0.00012671,2]
[408705118,1774157727100,841.139999,0.00012671,2]
[408705119,1774158006754,193.0,0.00012671,2]
[408705120,1774158037309,1229.485608,0.00011507,2]
[408705121,1774158037333,1139.834392,0.00011507,2]
[408705122,1774158038389,200.0,0.0001267,2]
[408705123,1774158065268,166.66,0.00011997,2]
[408705124,1774158065477,166.66,0.00012249,2]
[408705125,1774158065673,166.66,0.00012502,2]
[408705126,1774158162359,2522.87537004,0.00012671,2]
[408705128,1774158241652,2000.0,0.00012464,2]
[408705129,1774158443112,-220.3753253,0.00012698,2]
[408705130,1774158443136,-166.66,0.00012755,2]
[408705131,1774158443159,-250.0,0.00012756,2]
[408705132,1774158443183,-1649.03,0.00012758,2]
[408705133,1774158443206,-1701.39,0.00012798,2]
[408705134,1774158443228,-200.0,0.000128,4]
[408705135,1774158443248,-500.0,0.00012823,2]
[408705136,1774158443269,-1200.0,0.0001283,2]
[408705137,1774158443289,-300.0,0.0001283,2]
[408705138,1774158443313,-300.0,0.0001283,2]
[408705139,1774158443333,-7633.42,0.00012831,2]
[408705140,1774158443354,-400.0,0.000129,4]
[408705141,1774158443375,-166.66,0.00013007,2]
[408705142,1774158443396,-826.09172036,0.00013164,2]
[408705145,1774158546421,160.0,0.00012671,2]
[408705147,1774158561095,-200.0,0.000128,4]
[408705148,1774158561120,-400.0,0.000129,4]
[408705149,1774158561143,-673.90827964,0.00013164,2]
[408705150,1774158561167,-220.3753253,0.00013245,2]
[408705151,1774158561192,-166.66,0.0001326,2]
[408705152,1774158561216,-156.45,0.0001326,2]
[408705153,1774158561241,-214.95918747,0.000133,2]
[408705154,1774158561265,-531.940046,0.00013345,2]
[408705155,1774158563662,172.1892,0.00012598,2]
[408705156,1774158609418,155.0,0.00012671,2]
[408705158,1774158632045,-675.352,0.00012747,2]
[408705159,1774158632057,-7162.608,0.00012747,2]
[408705160,1774158632066,-300.0,0.00013275,2]
[408705161,1774158632076,-1200.0,0.00013275,2]
[408705162,1774158632085,-200611.88443509,0.00013276,2]
[408705163,1774158632101,-1652.648,0.00013276,2]
[408705176,1774158638078,-2372.8352,0.00013176,2]
[408705177,1774158638087,-630.3675888,0.00013275,2]
[408705178,1774158638096,-590.03427661,0.00013275,2]
[408705179,1774158638106,-166.76919402,0.00013275,2]
[408705180,1774158638115,-500.0,0.00013275,2]
[408705181,1774158638124,-263.58189215,0.00013275,2]